[Event "Titled Tuesday Blitz June 20 Early 2023"]
[White "Oparin, Grigoriy"]
[Black "Donchenko, Alexander"]
[WhiteFideId "24125890"]
[BlackFideId "24603295"]
[WhiteElo "2647"]
[BlackElo "2554"]
[Result "1-0"]
[Round "7"]
[TimeControl "180+2"]
[Date "2023.06.20"]
[WhiteClock "0:00:09"]
[BlackClock "0:00:02"]
[Board "11"]

1. Nf3 {[%clk 0:03:00]}  Nf6 {[%clk 0:02:59]} 2. g3 {[%clk 0:03:01]}  b5 {[%clk 0:03:00]} 3. e3 {[%clk 0:03:01]}  a6 {[%clk 0:02:59]} 4. Bg2 {[%clk 0:03:00]}  Bb7 {[%clk 0:02:59]} 5. O-O {[%clk 0:03:01]}  g6 {[%clk 0:02:59]} 6. b3 {[%clk 0:03:00]}  Bg7 {[%clk 0:02:59]} 7. Bb2 {[%clk 0:03:01]}  O-O {[%clk 0:02:59]} 8. Qe2 {[%clk 0:03:01]}  c5 {[%clk 0:02:59]} 9. c4 {[%clk 0:03:01]}  Qb6 {[%clk 0:02:59]} 10. Nc3 {[%clk 0:03:01]}  bxc4 {[%clk 0:02:56]} 11. Qxc4 {[%clk 0:02:56]}  d6 {[%clk 0:02:53]} 12. Qh4 {[%clk 0:02:50]}  Nbd7 {[%clk 0:02:51]} 13. d4 {[%clk 0:02:51]}  cxd4 {[%clk 0:02:51]} 14. Na4 {[%clk 0:02:49]}  Qa5 {[%clk 0:02:46]} 15. Bxd4 {[%clk 0:02:48]}  Rfc8 {[%clk 0:02:44]} 16. Rac1 {[%clk 0:02:47]}  Qh5 {[%clk 0:02:32]} 17. Qxh5 {[%clk 0:02:43]}  Nxh5 {[%clk 0:02:33]} 18. Bxg7 {[%clk 0:02:41]}  Kxg7 {[%clk 0:02:34]} 19. Nd4 {[%clk 0:02:40]}  Bxg2 {[%clk 0:02:32]} 20. Kxg2 {[%clk 0:02:41]}  Nhf6 {[%clk 0:02:31]} 21. Nc6 {[%clk 0:02:33]}  Kf8 {[%clk 0:02:29]} 22. Na5 {[%clk 0:01:59]}  Ke8 {[%clk 0:02:10]} 23. h3 {[%clk 0:01:58]}  h5 {[%clk 0:02:09]} 24. Kf3 {[%clk 0:01:55]}  Nd5 {[%clk 0:02:02]} 25. Ke2 {[%clk 0:01:47]}  Nb4 {[%clk 0:01:51]} 26. a3 {[%clk 0:01:46]}  Nd5 {[%clk 0:01:50]} 27. e4 {[%clk 0:01:43]}  N5f6 {[%clk 0:01:49]} 28. f3 {[%clk 0:01:40]}  Rab8 {[%clk 0:01:40]} 29. b4 {[%clk 0:01:35]}  g5 {[%clk 0:01:37]} 30. Ke3 {[%clk 0:01:33]}  d5 {[%clk 0:01:32]} 31. Rfd1 {[%clk 0:01:29]}  dxe4 {[%clk 0:01:30]} 32. fxe4 {[%clk 0:01:30]}  Ne5 {[%clk 0:01:28]} 33. Rxc8+ {[%clk 0:01:24]}  Rxc8 {[%clk 0:01:28]} 34. Nc5 {[%clk 0:01:25]}  Nfd7 {[%clk 0:01:19]} 35. Rc1 {[%clk 0:01:08]}  f6 {[%clk 0:01:14]} 36. Nab3 {[%clk 0:01:06]}  Nb6 {[%clk 0:01:04]} 37. Nd2 {[%clk 0:01:01]}  Rd8 {[%clk 0:01:03]} 38. Rc3 {[%clk 0:00:48]}  Rd6 {[%clk 0:00:50]} 39. a4 {[%clk 0:00:36]}  h4 {[%clk 0:00:33]} 40. gxh4 {[%clk 0:00:36]}  gxh4 {[%clk 0:00:34]} 41. a5 {[%clk 0:00:36]}  Nbd7 {[%clk 0:00:35]} 42. Nxd7 {[%clk 0:00:29]}  Kxd7 {[%clk 0:00:34]} 43. Nb3 {[%clk 0:00:29]}  Ke8 {[%clk 0:00:23]} 44. Nc5 {[%clk 0:00:28]}  Kf7 {[%clk 0:00:22]} 45. Rc1 {[%clk 0:00:22]}  Nc6 {[%clk 0:00:17]} 46. Rc4 {[%clk 0:00:20]}  Ne5 {[%clk 0:00:16]} 47. Rd4 {[%clk 0:00:21]}  Rc6 {[%clk 0:00:15]} 48. Rd8 {[%clk 0:00:20]}  Kg6 {[%clk 0:00:12]} 49. Rg8+ {[%clk 0:00:19]}  Kf7 {[%clk 0:00:12]} 50. Ra8 {[%clk 0:00:20]}  Rd6 {[%clk 0:00:11]} 51. Rxa6 {[%clk 0:00:20]}  Nc4+ {[%clk 0:00:12]} 52. Ke2 {[%clk 0:00:18]}  Rd2+ {[%clk 0:00:12]} 53. Ke1 {[%clk 0:00:18]}  Rh2 {[%clk 0:00:12]} 54. Ra8 {[%clk 0:00:19]}  Rxh3 {[%clk 0:00:12]} 55. a6 {[%clk 0:00:19]}  Ra3 {[%clk 0:00:10]} 56. Rh8 {[%clk 0:00:18]}  Ne3 {[%clk 0:00:09]} 57. Ke2 {[%clk 0:00:16]}  Ng2 {[%clk 0:00:07]} 58. b5 {[%clk 0:00:15]}  Kg7 {[%clk 0:00:08]} 59. Rxh4 {[%clk 0:00:11]}  Nxh4 {[%clk 0:00:08]} 60. b6 {[%clk 0:00:12]}  Ng6 {[%clk 0:00:04]} 61. b7 {[%clk 0:00:10]}  Nf4+ {[%clk 0:00:04]} 62. Kd1 {[%clk 0:00:08]}  Rc3 {[%clk 0:00:03]} 63. b8=Q {[%clk 0:00:09]}  Rxc5 {[%clk 0:00:03]} 64. Qxf4 {[%clk 0:00:09]}  Ra5 {[%clk 0:00:04]} 65. Qg4+ {[%clk 0:00:08]}  Kf7 {[%clk 0:00:05]} 66. Qc8 {[%clk 0:00:09]}  Ra4 {[%clk 0:00:04]} 67. Qb7 {[%clk 0:00:09]}  Ra5 {[%clk 0:00:02]} 68. a7 {[%clk 0:00:09]} 1-0


[Site "https://www.chess.com"]

[Event "Titled Tuesday Blitz June 20 Early 2023"]
[White "Gadimbayli, Abdulla"]
[Black "Puranik, Abhimanyu"]
[WhiteFideId "13404938"]
[BlackFideId "5061245"]
[WhiteElo "2386"]
[BlackElo "2460"]
[Result "0-1"]
[Round "7"]
[TimeControl "180+2"]
[Date "2023.06.20"]
[WhiteClock "0:00:00"]
[BlackClock "0:00:37"]
[Board "13"]

1. e4 {[%clk 0:02:59]}  e5 {[%clk 0:02:57]} 2. Nf3 {[%clk 0:02:59]}  Nc6 {[%clk 0:02:58]} 3. Nc3 {[%clk 0:02:59]}  Nf6 {[%clk 0:02:58]} 4. d4 {[%clk 0:03:00]}  Bb4 {[%clk 0:02:58]} 5. Nxe5 {[%clk 0:03:00]}  Bxc3+ {[%clk 0:02:57]} 6. bxc3 {[%clk 0:03:00]}  Qe7 {[%clk 0:02:57]} 7. f3 {[%clk 0:02:48]}  Nxe5 {[%clk 0:02:56]} 8. dxe5 {[%clk 0:02:49]}  Qxe5 {[%clk 0:02:56]} 9. Qd4 {[%clk 0:02:50]}  d6 {[%clk 0:02:47]} 10. a4 {[%clk 0:02:47]}  O-O {[%clk 0:02:34]} 11. Be3 {[%clk 0:02:37]}  Re8 {[%clk 0:02:32]} 12. Bc4 {[%clk 0:02:24]}  Be6 {[%clk 0:02:09]} 13. Bd3 {[%clk 0:02:11]}  Nd7 {[%clk 0:01:52]} 14. O-O {[%clk 0:01:55]}  c5 {[%clk 0:01:46]} 15. Qxe5 {[%clk 0:01:55]}  Nxe5 {[%clk 0:01:41]} 16. Rab1 {[%clk 0:01:31]}  Re7 {[%clk 0:01:40]} 17. Rfd1 {[%clk 0:01:28]}  f6 {[%clk 0:01:32]} 18. Be2 {[%clk 0:01:27]}  Bc4 {[%clk 0:01:20]} 19. Kf2 {[%clk 0:00:45]}  Bxe2 {[%clk 0:01:18]} 20. Kxe2 {[%clk 0:00:46]}  f5 {[%clk 0:01:03]} 21. Rxd6 {[%clk 0:00:40]}  fxe4 {[%clk 0:01:03]} 22. f4 {[%clk 0:00:29]}  Nc4 {[%clk 0:01:03]} 23. Rd5 {[%clk 0:00:27]}  b6 {[%clk 0:01:03]} 24. Rbd1 {[%clk 0:00:26]}  Rf8 {[%clk 0:00:58]} 25. Rd7 {[%clk 0:00:22]}  Kf7 {[%clk 0:00:54]} 26. Bc1 {[%clk 0:00:17]}  Re8 {[%clk 0:00:54]} 27. R7d5 {[%clk 0:00:16]}  Re6 {[%clk 0:00:48]} 28. g4 {[%clk 0:00:14]}  Rh6 {[%clk 0:00:47]} 29. Rf5+ {[%clk 0:00:02]}  Kg8 {[%clk 0:00:43]} 30. Rh1 {[%clk 0:00:02]}  Rh3 {[%clk 0:00:42]} 31. Bd2 {[%clk 0:00:00]}  Rd8 {[%clk 0:00:37]} 0-1


[Site "https://www.chess.com"]

[Event "Titled Tuesday Blitz June 20 Early 2023"]
[White "Svane, Rasmus"]
[Black "Beerdsen, Thomas"]
[WhiteFideId "4657101"]
[BlackFideId "1030108"]
[WhiteElo "2601"]
[BlackElo "2553"]
[Result "1-0"]
[Round "7"]
[TimeControl "180+2"]
[Date "2023.06.20"]
[WhiteClock "0:00:24"]
[BlackClock "0:00:00"]
[Board "14"]

1. Nf3 {[%clk 0:03:00]}  Nf6 {[%clk 0:02:59]} 2. g3 {[%clk 0:03:00]}  b5 {[%clk 0:02:59]} 3. Bg2 {[%clk 0:02:59]}  Bb7 {[%clk 0:03:00]} 4. d3 {[%clk 0:02:59]}  c5 {[%clk 0:03:00]} 5. e4 {[%clk 0:02:58]}  e6 {[%clk 0:03:00]} 6. O-O {[%clk 0:02:58]}  d5 {[%clk 0:03:00]} 7. exd5 {[%clk 0:02:55]}  Nxd5 {[%clk 0:03:01]} 8. a4 {[%clk 0:02:55]}  a6 {[%clk 0:02:59]} 9. axb5 {[%clk 0:02:52]}  axb5 {[%clk 0:03:00]} 10. Rxa8 {[%clk 0:02:52]}  Bxa8 {[%clk 0:03:01]} 11. c4 {[%clk 0:02:50]}  Nb4 {[%clk 0:02:55]} 12. cxb5 {[%clk 0:02:41]}  Qxd3 {[%clk 0:02:41]} 13. Bf4 {[%clk 0:02:33]}  Nd7 {[%clk 0:02:32]} 14. Nc3 {[%clk 0:01:36]}  Be7 {[%clk 0:02:26]} 15. Ne5 {[%clk 0:01:26]}  Nxe5 {[%clk 0:02:18]} 16. Bxa8 {[%clk 0:01:25]}  O-O {[%clk 0:02:01]} 17. Be4 {[%clk 0:01:20]}  Qxd1 {[%clk 0:01:59]} 18. Rxd1 {[%clk 0:01:21]}  Bf6 {[%clk 0:01:47]} 19. b6 {[%clk 0:01:21]}  Rb8 {[%clk 0:01:33]} 20. b7 {[%clk 0:01:15]}  g5 {[%clk 0:01:34]} 21. Be3 {[%clk 0:01:14]}  Be7 {[%clk 0:01:32]} 22. Na4 {[%clk 0:01:08]}  f5 {[%clk 0:01:14]} 23. Bg2 {[%clk 0:01:07]}  Ned3 {[%clk 0:01:08]} 24. Nb6 {[%clk 0:00:55]}  f4 {[%clk 0:00:54]} 25. Bd2 {[%clk 0:00:55]}  fxg3 {[%clk 0:00:31]} 26. hxg3 {[%clk 0:00:54]}  Ne5 {[%clk 0:00:25]} 27. Bc3 {[%clk 0:00:42]}  Nbc6 {[%clk 0:00:19]} 28. Nd7 {[%clk 0:00:42]}  Rd8 {[%clk 0:00:04]} 29. Bxe5 {[%clk 0:00:31]}  Nxe5 {[%clk 0:00:03]} 30. b8=Q {[%clk 0:00:29]}  Rxb8 {[%clk 0:00:04]} 31. Nxb8 {[%clk 0:00:30]}  Nc4 {[%clk 0:00:03]} 32. b3 {[%clk 0:00:29]}  Nb2 {[%clk 0:00:02]} 33. Rd2 {[%clk 0:00:28]}  Bf6 {[%clk 0:00:03]} 34. Nd7 {[%clk 0:00:27]}  Bc3 {[%clk 0:00:02]} 35. Rc2 {[%clk 0:00:27]}  Bd4 {[%clk 0:00:02]} 36. Nxc5 {[%clk 0:00:27]}  e5 {[%clk 0:00:03]} 37. Na4 {[%clk 0:00:25]}  Nd3 {[%clk 0:00:02]} 38. Be4 {[%clk 0:00:23]}  Nb4 {[%clk 0:00:01]} 39. Rc4 {[%clk 0:00:23]}  Na2 {[%clk 0:00:02]} 40. b4 {[%clk 0:00:24]}  Kf7 {[%clk 0:00:00]} 41. b5 {[%clk 0:00:24]} 1-0


[Site "https://www.chess.com"]

[Event "Titled Tuesday Blitz June 20 Early 2023"]
[White "Lagarde, Maxime"]
[Black "Shimanov, Aleksandr"]
[WhiteFideId "662399"]
[BlackFideId "4198603"]
[WhiteElo "2571"]
[BlackElo "2631"]
[Result "1-0"]
[Round "7"]
[TimeControl "180+2"]
[Date "2023.06.20"]
[WhiteClock "0:00:46"]
[BlackClock "0:00:00"]
[Board "16"]

1. d4 {[%clk 0:03:00]}  d5 {[%clk 0:02:56]} 2. Nf3 {[%clk 0:03:00]}  Nf6 {[%clk 0:02:55]} 3. Bf4 {[%clk 0:03:00]}  c5 {[%clk 0:02:55]} 4. e3 {[%clk 0:03:00]}  Nc6 {[%clk 0:02:51]} 5. Nbd2 {[%clk 0:03:00]}  cxd4 {[%clk 0:02:51]} 6. exd4 {[%clk 0:03:00]}  Bf5 {[%clk 0:02:51]} 7. c3 {[%clk 0:03:00]}  e6 {[%clk 0:02:45]} 8. Qb3 {[%clk 0:03:00]}  Qc8 {[%clk 0:02:40]} 9. Nh4 {[%clk 0:03:00]}  Bg4 {[%clk 0:02:37]} 10. h3 {[%clk 0:03:00]}  Bh5 {[%clk 0:02:37]} 11. g4 {[%clk 0:03:01]}  Bg6 {[%clk 0:02:38]} 12. Nxg6 {[%clk 0:03:01]}  hxg6 {[%clk 0:02:38]} 13. Be2 {[%clk 0:03:00]}  Qd7 {[%clk 0:02:37]} 14. O-O-O {[%clk 0:02:58]}  Bd6 {[%clk 0:02:36]} 15. Be3 {[%clk 0:02:58]}  a6 {[%clk 0:02:30]} 16. Kb1 {[%clk 0:02:58]}  b5 {[%clk 0:02:30]} 17. f4 {[%clk 0:02:50]}  Na5 {[%clk 0:02:26]} 18. Qc2 {[%clk 0:02:49]}  Rc8 {[%clk 0:02:24]} 19. Nf3 {[%clk 0:02:38]}  Nc4 {[%clk 0:02:20]} 20. Bxc4 {[%clk 0:02:32]}  bxc4 {[%clk 0:02:07]} 21. Ne5 {[%clk 0:02:31]}  Bxe5 {[%clk 0:01:59]} 22. dxe5 {[%clk 0:02:31]}  Ne4 {[%clk 0:01:58]} 23. h4 {[%clk 0:02:23]}  Rb8 {[%clk 0:01:56]} 24. h5 {[%clk 0:02:20]}  gxh5 {[%clk 0:01:51]} 25. Rxh5 {[%clk 0:02:16]}  Rxh5 {[%clk 0:01:40]} 26. gxh5 {[%clk 0:02:17]}  Ng3 {[%clk 0:01:32]} 27. h6 {[%clk 0:02:08]}  f5 {[%clk 0:00:33]} 28. h7 {[%clk 0:01:31]}  Kf7 {[%clk 0:00:29]} 29. Qh2 {[%clk 0:01:30]}  Rh8 {[%clk 0:00:12]} 30. Qxg3 {[%clk 0:01:30]}  Rxh7 {[%clk 0:00:13]} 31. Rg1 {[%clk 0:01:30]}  Kg8 {[%clk 0:00:12]} 32. Qg6 {[%clk 0:01:18]}  Rh2 {[%clk 0:00:11]} 33. Bc1 {[%clk 0:01:10]}  a5 {[%clk 0:00:10]} 34. Ka1 {[%clk 0:01:09]}  a4 {[%clk 0:00:11]} 35. a3 {[%clk 0:01:09]}  Rh3 {[%clk 0:00:10]} 36. Qg2 {[%clk 0:01:09]}  Rh6 {[%clk 0:00:09]} 37. Rh1 {[%clk 0:01:09]}  Rxh1 {[%clk 0:00:07]} 38. Qxh1 {[%clk 0:01:09]}  Qb5 {[%clk 0:00:06]} 39. Qh5 {[%clk 0:01:06]}  Qd7 {[%clk 0:00:05]} 40. Qg6 {[%clk 0:01:06]}  Qc6 {[%clk 0:00:03]} 41. Be3 {[%clk 0:01:04]}  Kf8 {[%clk 0:00:02]} 42. Bf2 {[%clk 0:01:00]}  Kg8 {[%clk 0:00:01]} 43. Bh4 {[%clk 0:00:55]}  Qd7 {[%clk 0:00:01]} 44. Qg5 {[%clk 0:00:51]}  Kf7 {[%clk 0:00:01]} 45. Qd8 {[%clk 0:00:50]}  Qc6 {[%clk 0:00:01]} 46. Qe7+ {[%clk 0:00:46]}  Kg8 {[%clk 0:00:02]} 47. Bf6 {[%clk 0:00:45]}  gxf6 {[%clk 0:00:00]} 48. exf6 {[%clk 0:00:46]} 1-0


[Site "https://www.chess.com"]

[Event "Titled Tuesday Blitz June 20 Early 2023"]
[White "Lobanov, Sergei"]
[Black "Kramnik, Vladimir"]
[WhiteFideId "24183750"]
[BlackFideId "4101588"]
[WhiteElo "2501"]
[BlackElo "2703"]
[Result "0-1"]
[Round "7"]
[TimeControl "180+2"]
[Date "2023.06.20"]
[WhiteClock "0:00:11"]
[BlackClock "0:00:18"]
[Board "20"]

1. d4 {[%clk 0:03:00]}  Nf6 {[%clk 0:02:59]} 2. c4 {[%clk 0:03:01]}  e6 {[%clk 0:02:59]} 3. Nc3 {[%clk 0:03:02]}  d5 {[%clk 0:02:59]} 4. cxd5 {[%clk 0:03:02]}  exd5 {[%clk 0:02:58]} 5. Bg5 {[%clk 0:03:02]}  c6 {[%clk 0:02:59]} 6. e3 {[%clk 0:03:02]}  Bf5 {[%clk 0:02:57]} 7. Bd3 {[%clk 0:02:57]}  Bxd3 {[%clk 0:02:56]} 8. Qxd3 {[%clk 0:02:58]}  Nbd7 {[%clk 0:02:56]} 9. Nge2 {[%clk 0:02:58]}  Be7 {[%clk 0:02:52]} 10. O-O {[%clk 0:02:58]}  O-O {[%clk 0:02:52]} 11. f3 {[%clk 0:02:58]}  Re8 {[%clk 0:02:50]} 12. Rad1 {[%clk 0:02:58]}  Nf8 {[%clk 0:02:47]} 13. Bh4 {[%clk 0:02:50]}  Ne6 {[%clk 0:02:32]} 14. Bf2 {[%clk 0:02:48]}  a5 {[%clk 0:02:18]} 15. h3 {[%clk 0:02:45]}  Qb6 {[%clk 0:02:16]} 16. e4 {[%clk 0:02:32]}  Qa6 {[%clk 0:02:11]} 17. Qc2 {[%clk 0:02:27]}  dxe4 {[%clk 0:02:06]} 18. fxe4 {[%clk 0:02:27]}  Rad8 {[%clk 0:02:03]} 19. Be3 {[%clk 0:01:51]}  Bb4 {[%clk 0:01:44]} 20. Ng3 {[%clk 0:01:15]}  c5 {[%clk 0:01:39]} 21. Rxf6 {[%clk 0:01:03]}  gxf6 {[%clk 0:01:36]} 22. Nd5 {[%clk 0:00:42]}  Nxd4 {[%clk 0:01:27]} 23. Bxd4 {[%clk 0:00:38]}  cxd4 {[%clk 0:01:26]} 24. Nh5 {[%clk 0:00:30]}  Re5 {[%clk 0:00:46]} 25. Ndxf6+ {[%clk 0:00:29]}  Kh8 {[%clk 0:00:45]} 26. Qc7 {[%clk 0:00:29]}  Qd6 {[%clk 0:00:37]} 27. Qxf7 {[%clk 0:00:18]}  Re7 {[%clk 0:00:35]} 28. Qc4 {[%clk 0:00:18]}  d3 {[%clk 0:00:34]} 29. a3 {[%clk 0:00:16]}  Qc5+ {[%clk 0:00:34]} 30. Qxc5 {[%clk 0:00:16]}  Bxc5+ {[%clk 0:00:35]} 31. Kh1 {[%clk 0:00:13]}  d2 {[%clk 0:00:34]} 32. Nd5 {[%clk 0:00:13]}  Rxe4 {[%clk 0:00:34]} 33. Rxd2 {[%clk 0:00:13]}  Re1+ {[%clk 0:00:33]} 34. Kh2 {[%clk 0:00:13]}  Re5 {[%clk 0:00:27]} 35. Nhf6 {[%clk 0:00:12]}  Be7 {[%clk 0:00:19]} 36. Ng4 {[%clk 0:00:11]}  Rexd5 {[%clk 0:00:18]} 0-1


[Site "https://www.chess.com"]

[Event "Titled Tuesday Blitz June 20 Early 2023"]
[White "Vakhlamov, Igor L."]
[Black "Gordievsky, Dmitry"]
[WhiteFideId "24126748"]
[BlackFideId "24112798"]
[WhiteElo "2407"]
[BlackElo "2546"]
[Result "1-0"]
[Round "7"]
[TimeControl "180+2"]
[Date "2023.06.20"]
[WhiteClock "0:00:29"]
[BlackClock "0:00:00"]
[Board "21"]

1. e4 {[%clk 0:03:00]}  c5 {[%clk 0:03:00]} 2. Nf3 {[%clk 0:03:01]}  e6 {[%clk 0:03:01]} 3. Nc3 {[%clk 0:03:01]}  Nc6 {[%clk 0:03:01]} 4. d4 {[%clk 0:03:02]}  cxd4 {[%clk 0:03:02]} 5. Nxd4 {[%clk 0:03:02]}  Nf6 {[%clk 0:03:02]} 6. Nxc6 {[%clk 0:03:01]}  bxc6 {[%clk 0:03:03]} 7. Bd3 {[%clk 0:03:01]}  d5 {[%clk 0:03:03]} 8. O-O {[%clk 0:03:02]}  Bd6 {[%clk 0:03:04]} 9. Re1 {[%clk 0:03:03]}  Qc7 {[%clk 0:03:04]} 10. h3 {[%clk 0:02:58]}  O-O {[%clk 0:03:04]} 11. b3 {[%clk 0:02:51]}  Bh2+ {[%clk 0:03:03]} 12. Kh1 {[%clk 0:02:47]}  Be5 {[%clk 0:03:04]} 13. Bb2 {[%clk 0:02:44]}  dxe4 {[%clk 0:02:26]} 14. Bxe4 {[%clk 0:02:39]}  Nxe4 {[%clk 0:02:26]} 15. Rxe4 {[%clk 0:02:39]}  Bf6 {[%clk 0:02:23]} 16. Qh5 {[%clk 0:02:11]}  e5 {[%clk 0:02:03]} 17. Na4 {[%clk 0:02:00]}  g6 {[%clk 0:01:57]} 18. Qe2 {[%clk 0:01:56]}  Re8 {[%clk 0:01:08]} 19. f4 {[%clk 0:01:31]}  Bf5 {[%clk 0:01:01]} 20. Bxe5 {[%clk 0:01:30]}  Bxe4 {[%clk 0:00:52]} 21. Bxc7 {[%clk 0:01:23]}  Bxa1 {[%clk 0:00:53]} 22. c3 {[%clk 0:01:09]}  Bd5 {[%clk 0:00:17]} 23. Qd1 {[%clk 0:01:05]}  Re7 {[%clk 0:00:15]} 24. Be5 {[%clk 0:01:05]}  Rae8 {[%clk 0:00:15]} 25. Qxa1 {[%clk 0:00:57]}  f6 {[%clk 0:00:15]} 26. c4 {[%clk 0:00:58]}  fxe5 {[%clk 0:00:11]} 27. cxd5 {[%clk 0:00:57]}  exf4 {[%clk 0:00:12]} 28. Qd4 {[%clk 0:00:54]}  f3 {[%clk 0:00:11]} 29. dxc6 {[%clk 0:00:39]}  Re1+ {[%clk 0:00:04]} 30. Kh2 {[%clk 0:00:39]}  fxg2 {[%clk 0:00:01]} 31. Kxg2 {[%clk 0:00:35]}  R8e2+ {[%clk 0:00:01]} 32. Kf3 {[%clk 0:00:34]}  Rc2 {[%clk 0:00:01]} 33. c7 {[%clk 0:00:30]}  Rxc7 {[%clk 0:00:00]} 34. Qd8+ {[%clk 0:00:29]} 1-0


[Site "https://www.chess.com"]

[Event "Titled Tuesday Blitz June 20 Early 2023"]
[White "Kozak, Adam"]
[Black "Seo, Jung Min"]
[WhiteFideId "753246"]
[BlackFideId "1734687"]
[WhiteElo "2469"]
[BlackElo "2468"]
[Result "1/2-1/2"]
[Round "7"]
[TimeControl "180+2"]
[Date "2023.06.20"]
[WhiteClock "0:00:09"]
[BlackClock "0:00:28"]
[Board "23"]

1. d4 {[%clk 0:02:54]}  Nf6 {[%clk 0:02:59]} 2. c4 {[%clk 0:02:48]}  g6 {[%clk 0:02:59]} 3. Nc3 {[%clk 0:02:49]}  Bg7 {[%clk 0:02:59]} 4. e4 {[%clk 0:02:48]}  d6 {[%clk 0:03:00]} 5. Nf3 {[%clk 0:02:49]}  O-O {[%clk 0:02:58]} 6. Be2 {[%clk 0:02:49]}  Nc6 {[%clk 0:02:57]} 7. O-O {[%clk 0:02:50]}  e5 {[%clk 0:02:52]} 8. d5 {[%clk 0:02:50]}  Ne7 {[%clk 0:02:51]} 9. Ne1 {[%clk 0:02:51]}  a5 {[%clk 0:02:48]} 10. Be3 {[%clk 0:02:50]}  Nd7 {[%clk 0:02:48]} 11. f3 {[%clk 0:02:49]}  f5 {[%clk 0:02:48]} 12. Nd3 {[%clk 0:02:50]}  b6 {[%clk 0:02:34]} 13. a4 {[%clk 0:02:49]}  f4 {[%clk 0:02:31]} 14. Bf2 {[%clk 0:02:49]}  g5 {[%clk 0:02:31]} 15. b4 {[%clk 0:02:49]}  h5 {[%clk 0:02:29]} 16. bxa5 {[%clk 0:02:47]}  Rxa5 {[%clk 0:02:27]} 17. Nb4 {[%clk 0:02:47]}  Nf6 {[%clk 0:02:25]} 18. Nc6 {[%clk 0:02:47]}  Nxc6 {[%clk 0:02:24]} 19. dxc6 {[%clk 0:02:48]}  Be6 {[%clk 0:02:14]} 20. Nd5 {[%clk 0:02:48]}  Rf7 {[%clk 0:02:02]} 21. Be1 {[%clk 0:02:48]}  Ra8 {[%clk 0:02:01]} 22. a5 {[%clk 0:02:48]}  bxa5 {[%clk 0:02:01]} 23. Rxa5 {[%clk 0:02:45]}  Rc8 {[%clk 0:01:56]} 24. Ra7 {[%clk 0:02:43]}  Qe8 {[%clk 0:01:40]} 25. Ra6 {[%clk 0:02:35]}  Kh7 {[%clk 0:01:34]} 26. Kh1 {[%clk 0:02:33]}  Qg8 {[%clk 0:01:27]} 27. Bf2 {[%clk 0:02:22]}  g4 {[%clk 0:01:22]} 28. Bh4 {[%clk 0:02:21]}  Bxd5 {[%clk 0:01:15]} 29. cxd5 {[%clk 0:02:21]}  g3 {[%clk 0:01:12]} 30. hxg3 {[%clk 0:01:40]}  fxg3 {[%clk 0:01:11]} 31. Bxg3 {[%clk 0:01:28]}  Bh6 {[%clk 0:01:08]} 32. Bh4 {[%clk 0:01:28]}  Bg5 {[%clk 0:01:08]} 33. Qe1 {[%clk 0:01:28]}  Rg7 {[%clk 0:01:06]} 34. Rg1 {[%clk 0:01:02]}  Rf8 {[%clk 0:01:01]} 35. Bxg5 {[%clk 0:01:00]}  Rxg5 {[%clk 0:01:00]} 36. Qh4 {[%clk 0:01:00]}  Rf7 {[%clk 0:00:55]} 37. g3 {[%clk 0:00:50]}  Qg6 {[%clk 0:00:54]} 38. Ra8 {[%clk 0:00:45]}  Rg7 {[%clk 0:00:53]} 39. Kh2 {[%clk 0:00:45]}  Qh6 {[%clk 0:00:49]} 40. Rg2 {[%clk 0:00:37]}  R5g6 {[%clk 0:00:48]} 41. Rf8 {[%clk 0:00:31]}  Re7 {[%clk 0:00:37]} 42. Rd8 {[%clk 0:00:23]}  Reg7 {[%clk 0:00:33]} 43. Rb8 {[%clk 0:00:15]}  Rf7 {[%clk 0:00:29]} 44. Rd8 {[%clk 0:00:14]}  Rfg7 {[%clk 0:00:29]} 45. Bb5 {[%clk 0:00:11]}  Qe3 {[%clk 0:00:27]} 46. Be2 {[%clk 0:00:09]}  Qh6 {[%clk 0:00:28]} 1/2-1/2


[Site "https://www.chess.com"]

[Event "Titled Tuesday Blitz June 20 Early 2023"]
[White "Pap, Gyula"]
[Black "Fernandez Guillen, Ernesto J."]
[WhiteFideId "725323"]
[BlackFideId "3512428"]
[WhiteElo "2519"]
[BlackElo "2434"]
[Result "1-0"]
[Round "7"]
[TimeControl "180+2"]
[Date "2023.06.20"]
[WhiteClock "0:00:39"]
[BlackClock "0:00:07"]
[Board "24"]

1. d4 {[%clk 0:03:00]}  Nf6 {[%clk 0:02:58]} 2. c4 {[%clk 0:03:01]}  g6 {[%clk 0:02:58]} 3. Nc3 {[%clk 0:03:01]}  d6 {[%clk 0:02:59]} 4. e4 {[%clk 0:03:01]}  Bg7 {[%clk 0:02:59]} 5. Be2 {[%clk 0:03:02]}  O-O {[%clk 0:03:00]} 6. Bg5 {[%clk 0:03:03]}  h6 {[%clk 0:03:00]} 7. Be3 {[%clk 0:03:03]}  e5 {[%clk 0:02:59]} 8. d5 {[%clk 0:03:01]}  Nbd7 {[%clk 0:02:59]} 9. Qd2 {[%clk 0:02:55]}  Kh7 {[%clk 0:02:55]} 10. f3 {[%clk 0:02:52]}  a5 {[%clk 0:02:54]} 11. Bd1 {[%clk 0:02:49]}  Nc5 {[%clk 0:02:54]} 12. Bc2 {[%clk 0:02:49]}  b6 {[%clk 0:02:53]} 13. Nge2 {[%clk 0:02:48]}  a4 {[%clk 0:02:38]} 14. g4 {[%clk 0:02:41]}  Ba6 {[%clk 0:02:27]} 15. b4 {[%clk 0:02:41]}  axb3 {[%clk 0:02:22]} 16. axb3 {[%clk 0:02:40]}  Bb7 {[%clk 0:02:16]} 17. O-O {[%clk 0:02:40]}  Nfd7 {[%clk 0:02:14]} 18. b4 {[%clk 0:02:35]}  Na6 {[%clk 0:02:14]} 19. Nb5 {[%clk 0:02:35]}  Qh4 {[%clk 0:01:59]} 20. Kg2 {[%clk 0:02:35]}  Kh8 {[%clk 0:01:57]} 21. Ng3 {[%clk 0:02:29]}  Rg8 {[%clk 0:01:54]} 22. Ra3 {[%clk 0:02:25]}  Raf8 {[%clk 0:01:53]} 23. Rfa1 {[%clk 0:02:17]}  Ndb8 {[%clk 0:01:53]} 24. Na7 {[%clk 0:01:59]}  Kh7 {[%clk 0:01:15]} 25. Nc6 {[%clk 0:01:57]}  Bxc6 {[%clk 0:00:27]} 26. dxc6 {[%clk 0:01:57]}  Bf6 {[%clk 0:00:28]} 27. Rxa6 {[%clk 0:01:53]}  Nxa6 {[%clk 0:00:29]} 28. Rxa6 {[%clk 0:01:53]}  Bg5 {[%clk 0:00:29]} 29. Bxg5 {[%clk 0:01:48]}  hxg5 {[%clk 0:00:30]} 30. Ra7 {[%clk 0:01:48]}  Rc8 {[%clk 0:00:30]} 31. Nf1 {[%clk 0:01:33]}  Kg7 {[%clk 0:00:31]} 32. Qf2 {[%clk 0:01:33]}  Qh6 {[%clk 0:00:29]} 33. Ne3 {[%clk 0:01:33]}  Rh8 {[%clk 0:00:29]} 34. Qg3 {[%clk 0:01:33]}  Ra8 {[%clk 0:00:21]} 35. Rxc7 {[%clk 0:01:33]}  Ra3 {[%clk 0:00:22]} 36. Nf1 {[%clk 0:01:10]}  Ra2 {[%clk 0:00:20]} 37. Qf2 {[%clk 0:01:11]}  Qh3+ {[%clk 0:00:20]} 38. Kg1 {[%clk 0:01:11]}  Ra1 {[%clk 0:00:16]} 39. Bd3 {[%clk 0:01:08]}  Ra3 {[%clk 0:00:14]} 40. Be2 {[%clk 0:01:07]}  Ra2 {[%clk 0:00:15]} 41. Rd7 {[%clk 0:01:02]}  Rc8 {[%clk 0:00:13]} 42. b5 {[%clk 0:01:00]}  Rd2 {[%clk 0:00:07]} 43. Nxd2 {[%clk 0:00:39]} 1-0


[Site "https://www.chess.com"]